[Event "Summer Prague Open-A 2022"]
[Site "Prague"]
[Date "2022.08.05"]
[Round "1.7"]
[White "Schletter, Felix"]
[Black "Kaspi, Alexander"]
[Result "1-0"]
[ECO "B54"]
[WhiteElo "1975"]
[BlackElo "2414"]
[Annotator "TA"]
[PlyCount "119"]
[EventDate "2022.08.05"]
[EventType "swiss"]
[EventCountry "CZE"]
[SourceTitle "playchess.com"]
[Source "ChessBase"]
[SourceQuality "1"]
[TimeControl "40/5400+30:1800+30"]

{[%evp 23,119,57,68,33,64,63,66,35,35,38,34,25,30,15,24,18,31,-81,-81,-81,-82,-77,-78,-76,-78,-72,-56,-114,-67,-241,-234,-221,-16,-20,0,0,9,12,166,174,205,205,267,183,400,402,400,409,417,405,428,326,720,372,508,502,607,534,581,552,664,538,522,511,518,496,583,585,866,874,883,890,771,767,759,763,1408,1397,1206,1241,999,863,1949,1892,1846,1841,1723,1650,1555,1404,2319,1939,5601,5306,29939,6423,6108,4263]} 1. e4 {[%emt 0:00:03]} c5 {[%emt 0:00:09]} 2. Nf3 {[%emt 0:00:07]} d6 {[%emt 0:00:05]} 3. d4 {[%emt 0:00:07]} cxd4 {[%emt 0:00:05]} 4. Nxd4 {[%emt 0:00:06]} Nf6 {[%emt 0:00:05]} 5. f3 {[%emt 0:00:07]} a6 {[%emt 0:01:07]} 6. c4 {[%emt 0:01:10]} e6 {[%emt 0:00:06]} 7. Nc3 {[%emt 0:00:16]} Be7 {[%emt 0:00:08]} 8. Be3 {[%emt 0:00:10]} b6 {[%emt 0:00:14]} 9. Be2 {[%emt 0:00:59]} O-O {[%emt 0:00:11]} 10. O-O {[%emt 0:00:08]} Bb7 {[%emt 0:00:05]} 11. Qd2 {[%emt 0:00:31]} Qc7 {[%emt 0:00:24]} 12. Rfc1 $1 {[%emt 0:01:14] 12.Rfc1 scores better than 12.Rac1.} Nbd7 {[%emt 0:00:12]} 13. a4 {[%emt 0:00:19][%cal Oa4a5] B41: Sicilian: Kan Variation: 5 c4.} a5 {[%emt 0:07:29]} 14. Ndb5 {[%emt 0:06:59]} Qb8 {[%emt 0:00:15]} 15. Bf4 {[%emt 0:05:05] White is more active. White is slightly better.} (15. Rd1 $5 {[%cal Rb5d6]}) 15... Nc5 {[%emt 0:00:59]} 16. Qc2 {[%emt 0:04:35] [#] Prevents Nb3.} ({Not} 16. Nxd6 $2 Nb3 17. Nxb7 Nxd2 18. Bxb8 Raxb8 $19) 16... Rd8 $146 {[%emt 0:05:51]} ({Predecessor:} 16... Nfd7 17. Rd1 Ne5 18. Be3 Rd8 19. f4 Nc6 20. Bxc5 bxc5 21. Bf3 Bf6 22. Kh1 g6 {½-½ (42) Kumar,N (1914)-Huang,M (1805) Irving 2018}) 17. Rd1 {[%emt 0:01:15]} Rd7 {[%emt 0:00:06]} 18. Rd2 {[%emt 0:08:38]} Qf8 {[%emt 0:05:27]} 19. Rad1 {[%emt 0:02:12][%cal Rb5d6]} Rad8 {[%emt 0:00:12]} 20. e5 {[%emt 0:23:32]} (20. g3 $14 {keeps the upper hand.}) 20... Nh5 $17 {[%emt 0:07:24]} 21. exd6 {[%emt 0:00:15]} Nxf4 {[%emt 0:00:15]} 22. dxe7 {[%emt 0:00:07]} Qxe7 {[%emt 0:00:05]} 23. Rxd7 {[%emt 0:03:38]} Rxd7 {[%emt 0:00:13]} 24. Rxd7 {[%emt 0:00:34]} Nxd7 {[%emt 0:04:56]} 25. Ne4 {[%emt 0:09:06]} (25. Qd2 $15 Nxe2+ 26. Nxe2) 25... f5 {[%emt 0:02:45]} (25... Nc5 $17 26. Nbc3 Bxe4 27. Nxe4 Nxe2+ 28. Qxe2 Nxa4) 26. Ng3 {[%emt 0:08:27]} (26. Ned6 $15 Bc6 27. g3 Nxe2+ 28. Qxe2) 26... Qc5+ $19 {[%emt 0:00:48]} 27. Kf1 {[%emt 0:01:14] [#]} Ne5 $2 {[%emt 0:05:34]} ({Black should play} 27... Nd5 $1 $19 {[%cal Rd5e3] White must now prevent ...Ne3+.} 28. Qd3 Ne3+ 29. Kf2 Nxc4+ 30. Ke1 Bd5) 28. Qd2 $11 {[%emt 0:04:27]} Nxe2 {[%emt 0:07:46]} (28... Nfg6 {seems wilder.} 29. b3 Nf8 30. Nd6 Bc6) 29. Nxe2 {[%emt 0:01:45] Strongly threatening Qd8+.} Qe7 {[%emt 0:19:54] Against Qd8+} (29... Qxc4 $2 30. Qd8+ Kf7 31. Nd6+ Kg6 32. Nxc4 $18) 30. Qf4 {[%emt 0:04:22]} Nc6 {[%emt 0:02:48] Black is on the road to losing.} (30... Qc5 $11 {and Black stays safe.}) 31. Qe3 $18 {[%emt 0:02:31]} e5 {[%emt 0:03:57]} 32. Qxb6 {[%emt 0:00:34]} Qd7 {[%emt 0:02:37]} 33. Nc7 {[%emt 0:02:39]} Nd8 {[%emt 0:07:09]} (33... Bc8 34. Nd5 Kh8) 34. Qxa5 {[%emt 0:00:28]} e4 {[%emt 0:00:09]} 35. Nd5 {[%emt 0:01:25]} exf3 {[%emt 0:00:32]} 36. gxf3 {[%emt 0:00:09]} Ne6 {[%emt 0:00:38]} 37. Qb5 {[%emt 0:04:01]} Qf7 {[%emt 0:01:15]} (37... Qxb5 38. axb5 Kf7) 38. Qb4 {[%emt 0:00:41]} Ba6 {[%emt 0:03:24]} 39. b3 {[%emt 0:03:07]} h6 {[%emt 0:04:19]} 40. Qe7 {[%emt 0:01:43]} g5 {[%emt 0:02:03]} 41. Ke1 {[%emt 0:07:22]} f4 {[%emt 0:00:12]} 42. Qxf7+ {[%emt 0:00:26]} Kxf7 {[%emt 0:00:07][%mdl 4096] Endgame KBN-KNN} 43. Kd2 {[%emt 0:00:25]} Nc5 {[%emt 0:00:59]} 44. Kc3 {[%emt 0:00:20]} Bb7 {[%emt 0:00:05]} 45. a5 {[%emt 0:00:41]} Ke6 {[%emt 0:00:23]} 46. b4 {[%emt 0:00:29]} Nd7 {[%emt 0:00:08]} 47. Kd4 {[%emt 0:07:55]} Ne5 {[%emt 0:01:05]} 48. a6 {[%emt 0:02:16]} Bxa6 {[%emt 0:00:17]} 49. Nc7+ {[%emt 0:00:08]} ({Less strong is} 49. Ke4 Bxc4 50. Nd4+ Kd6 51. Nf5+ Ke6 52. Nc7+ Kd7 $18) 49... Kd6 {[%emt 0:00:06]} 50. Nxa6 {[%emt 0:00:14]} Nxf3+ {[%emt 0:00:06]} 51. Ke4 {[%emt 0:00:27]} Nd2+ {[%emt 0:00:25]} 52. Kd3 {[%emt 0:00:09]} Nf3 {[%emt 0:00:07]} 53. b5 {[%emt 0:02:39]} Ne5+ {[%emt 0:00:31]} 54. Kd4 {[%emt 0:00:22]} Nf3+ {[%emt 0:05:17]} 55. Ke4 {[%emt 0:00:02]} Nd2+ {[%emt 0:00:07]} 56. Kd3 {[%emt 0:00:04]} Nf3 {[%emt 0:00:08]} 57. c5+ {[%emt 0:00:26]} Kd5 {[%emt 0:00:13]} 58. Nc3+ {[%emt 0:00:15]} Ke6 {[%emt 0:00:21]} 59. b6 {[%emt 0:00:29] [#] White wants to mate with b7.} Ne5+ {[%emt 0:01:24]} 60. Ke4 {[%emt 0:00:10] Weighted Error Value: White=0.49/Black=0.50} 1-0

[Event "Summer Prague Open-A 2022"]
[Site "Prague"]
[Date "2022.08.05"]
[Round "1.8"]
[White "Lutsko, Artem"]
[Black "Rasmussen, Jonas H"]
[Result "1-0"]
[ECO "A05"]
[WhiteElo "2392"]
[BlackElo "1951"]
[Annotator "TA"]
[PlyCount "130"]
[EventDate "2022.08.05"]
[EventType "swiss"]
[EventCountry "CZE"]
[SourceTitle "playchess.com"]
[Source "ChessBase"]
[SourceQuality "1"]
[TimeControl "40/5400+30:1800+30"]

{[%evp 13,130,12,10,8,0,6,0,4,6,8,27,22,14,9,20,18,22,27,18,14,19,3,5,0,0,0,0,0,0,0,0,0,12,23,23,10,11,7,24,25,14,16,33,33,33,33,34,0,0,0,22,19,33,33,33,33,33,33,48,31,32,33,30,32,35,38,33,22,58,25,71,22,32,8,9,9,9,10,10,10,10,10,10,10,12,0,0,0,33,0,0,0,0,0,0,0,0,0,1682,1433,164,1888,1607,1464,1455,2376,2554,4982,5497,6411,12837,12837,12837,12833,12837,12839,12839,12839,12844]} 1. Nf3 {[%emt 0:00:01]} Nf6 {[%emt 0:00:14]} 2. g3 {[%emt 0:00:04]} d5 {[%emt 0:00:18]} 3. Bg2 {[%emt 0:00:04]} g6 {[%emt 0:01:04]} 4. b3 {[%emt 0:00:47]} Bg7 {[%emt 0:00:21]} 5. Bb2 {[%emt 0:00:04]} O-O {[%emt 0:00:56]} 6. c4 {[%emt 0:00:17]} e6 {[%emt 0:03:28]} 7. O-O {[%emt 0:00:21]} b6 {[%emt 0:00:43] 7...b6 is better than 7...c5.} 8. cxd5 {[%emt 0:05:37] A05: Réti Opening: 1 Nf3 Nf6.} exd5 {[%emt 0:01:17]} 9. Nc3 {[%emt 0:00:09]} Bb7 {[%emt 0:01:16]} 10. d4 {[%emt 0:00:24] The position is equal.} Nbd7 {[%emt 0:02:34]} 11. Qc2 {[%emt 0:02:18] [#]} a6 $146 {[%emt 0:05:14]} ({Predecessor:} 11... c6 12. Rfd1 Re8 13. e3 Rc8 14. b4 b5 15. Ne1 a5 16. bxa5 Qxa5 17. Nd3 Bf8 {1-0 (55) Nakamura,H (2736)-Yoo,C (2466) Chess.com INT 2021}) 12. Rad1 {[%emt 0:04:33]} Re8 {[%emt 0:06:59]} 13. Ne5 {[%emt 0:03:52]} Qe7 {[%emt 0:07:51]} ({Don't take} 13... Nxe5 14. dxe5 Rxe5 15. Nxd5 $1 Rxd5 16. Bxd5 Bxd5 17. Bxf6 Bxf6 18. e4 $16) 14. Rfe1 {[%emt 0:01:29]} Rad8 {[%emt 0:03:41]} 15. e3 {[%emt 0:01:42]} Nxe5 {[%emt 0:10:35]} 16. dxe5 {[%emt 0:00:09]} Ne4 {[%emt 0:00:43]} (16... Qxe5 $2 17. Nxd5 $1 {[%mdl 512]} Qxb2 18. Qxb2 $18) 17. Nxe4 {[%emt 0:03:26]} dxe4 {[%emt 0:00:08]} 18. Rc1 {[%emt 0:31:29]} c5 {[%emt 0:08:50]} 19. Bxe4 {[%emt 0:00:28]} Bxe4 {[%emt 0:00:55]} 20. Qxe4 {[%emt 0:00:03]} Bxe5 {[%emt 0:01:09]} 21. Bxe5 {[%emt 0:00:12]} Qxe5 {[%emt 0:00:36]} 22. Qb7 {[%emt 0:02:04][%csl LRa6,LRb6]} Qf6 {[%emt 0:07:06]} 23. Qxa6 {[%emt 0:06:01]} Rd2 {[%emt 0:02:35]} 24. Re2 {[%emt 0:00:18]} Red8 {[%emt 0:03:40]} 25. Rce1 {[%emt 0:02:49]} Kg7 {[%emt 0:06:33]} 26. Kg2 {[%emt 0:01:22]} Qc6+ {[%emt 0:03:25]} 27. e4 {[%emt 0:02:53]} Qf6 {[%emt 0:05:56]} 28. Rxd2 {[%emt 0:04:44]} Rxd2 $14 {[%emt 0:00:14][%mdl 4096] Endgame KQR-KQR} 29. Re2 {[%emt 0:00:01]} Rd1 {[%emt 0:01:30]} 30. Qb7 {[%emt 0:03:34]} Qe6 {[%emt 0:06:00]} 31. Qc7 {[%emt 0:02:16]} Rd6 {[%emt 0:02:48]} 32. h3 {[%emt 0:08:36]} (32. Qa7 {with more complications.} Rd1 33. Qb8 g5 34. f4) 32... Rd1 {[%emt 0:02:31]} 33. Qf4 {[%emt 0:01:38]} Rd4 {[%emt 0:01:29]} 34. Qf3 {[%emt 0:00:43]} Qe5 {[%emt 0:01:20]} 35. Qc3 {[%emt 0:00:40]} (35. Qe3 {is more complex.} h5 36. h4 Rd1 37. Qf3) 35... Kg8 {[%emt 0:00:58]} 36. a3 {[%emt 0:05:08]} Qe6 {[%emt 0:01:17]} 37. Qf3 {[%emt 0:01:34]} Qe5 {[%emt 0:00:37]} 38. Re3 {[%emt 0:00:04]} Kg7 {[%emt 0:01:27]} 39. Qe2 {[%emt 0:01:11]} Qe6 {[%emt 0:00:56]} 40. e5 {[%emt 0:00:14]} Rd5 {[%emt 0:00:34]} 41. Qc4 {[%emt 0:32:08]} Qc6 {[%emt 0:04:06]} (41... Qd7 $11 {might be stronger.}) 42. Qe4 {[%emt 0:00:00]} (42. Rf3 $1 $16) 42... Qe6 $1 $11 {[%emt 0:00:44]} 43. g4 {[%emt 0:00:00]} Rd4 {[%emt 0:02:14]} 44. Qf3 {[%emt 0:00:00]} Rd5 {[%emt 0:01:10]} 45. Qe2 {[%emt 0:00:00]} Rd4 {[%emt 0:00:45]} 46. Kg3 {[%emt 0:00:00]} g5 {[%emt 0:04:29] Prevents f4.} 47. Qc2 {[%emt 0:00:00]} Rf4 {[%emt 0:02:14]} (47... Qh6 48. b4 $16) 48. Qd3 {[%emt 0:00:00]} h6 {[%emt 0:06:08]} ({Resist} 48... Qh6 49. Rf3 $16) 49. f3 {[%emt 0:00:00]} Rd4 {[%emt 0:03:29]} 50. Qf5 {[%emt 0:00:00]} Qe7 {[%emt 0:00:10]} 51. e6 {[%emt 0:00:00][%cal Oe6f7]} f6 {[%emt 0:00:58]} 52. Re2 {[%emt 0:00:00] Kg2 is the strong threat.} Qd6+ $1 {[%emt 0:03:49]} 53. Kg2 {[%emt 0:00:00] Threatening mate with e7. Dancing on a razor blade.} Rd2 $1 {[%emt 0:03:26]} 54. Kf1 {[%emt 0:00:00]} Rd1+ {[%emt 0:02:01]} 55. Re1 {[%emt 0:00:00]} Qd2 $2 {[%emt 0:01:25][%mdl 8192] [#]} (55... Qd4 $11) 56. Qe4 $1 $18 {[%emt 0:00:00]} Rxe1+ {[%emt 0:00:52]} 57. Qxe1 {[%emt 0:00:00] KQ-KQ} Qd3+ {[%emt 0:00:29] [#] White is clearly winning.} 58. Qe2 $1 {[%emt 0:00:00]} Qd8 {[%emt 0:00:37]} 59. e7 {[%emt 0:00:00]} Qe8 {[%emt 0:00:04]} 60. Qe6 {[%emt 0:00:00]} b5 {[%emt 0:00:41]} 61. Ke1 {[%emt 0:00:00]} c4 {[%emt 0:00:38]} 62. bxc4 {[%emt 0:00:00]} bxc4 {[%emt 0:00:07]} 63. Kd2 {[%emt 0:00:00]} Kg6 {[%emt 0:00:56]} 64. a4 {[%emt 0:00:00]} Kg7 {[%emt 0:00:23]} 65. Kc3 {[%emt 0:01:05]} Kh8 {Weighted Error Value: White=0.06 (flawless) /Black=0.06 (flawless)} 1-0

[Event "Summer Prague Open-A 2022"]
[Site "Prague"]
[Date "2022.08.05"]
[Round "1.9"]
[White "Reprun, Nadejda"]
[Black "Kambrath, Yannick"]
[Result "0-1"]
[ECO "B44"]
[WhiteElo "1958"]
[BlackElo "2401"]
[Annotator "TA"]
[PlyCount "92"]
[EventDate "2022.08.05"]
[EventType "swiss"]
[EventCountry "CZE"]
[SourceTitle "playchess.com"]
[Source "ChessBase"]
[SourceQuality "1"]
[TimeControl "40/5400+30:1800+30"]

{[%evp 13,92,0,0,0,0,0,12,0,0,15,19,-13,8,0,24,10,15,13,17,0,27,27,53,27,58,-29,-27,-77,-54,-55,-70,-77,-21,-46,-40,-172,-175,-203,-182,-170,-198,-179,-128,-179,0,-157,-183,-170,-174,-220,-228,-229,-223,-234,-224,-307,-304,-306,-293,-341,-348,-335,-260,-343,-341,-412,-273,-332,-308,-306,-278,-446,-444,-449,-411,-418,-415,-335,-328,-610,-537]} 1. e4 {[%emt 0:00:01]} c5 {[%emt 0:00:18]} 2. Nf3 {[%emt 0:00:04]} e6 {[%emt 0:00:24]} 3. d4 {[%emt 0:00:04]} cxd4 {[%emt 0:00:05]} 4. Nxd4 {[%emt 0:00:04]} Nc6 {[%emt 0:00:26]} 5. Nb5 {[%emt 0:00:08]} d6 {[%emt 0:00:47]} 6. c4 {[%emt 0:00:06]} Nf6 {[%emt 0:00:47]} 7. N5c3 {[%emt 0:00:13]} b6 {[%emt 0:05:56]} 8. Be2 {[%emt 0:04:19] B44: Sicilian: Taimanov: 5 Nb5.} Bb7 {[%emt 0:00:21]} 9. Be3 {[%emt 0:00:41]} Rc8 {[%emt 0:00:33]} 10. Nd2 {[%emt 0:00:21] The position is equal.} Be7 {[%emt 0:04:25]} 11. O-O {[%emt 0:00:15]} O-O {[%emt 0:00:39] [#]} 12. Rc1 $146 {[%emt 0:01:43]} ({Predecessor:} 12. Qa4 Nd7 13. b4 a6 14. Rac1 Bf6 15. Rfd1 Qe7 16. Nf1 Nce5 17. Qb3 Ng6 18. Ng3 {0-1 (27) Gorbatov,A (2389)-Meskovs,N (2524) Riga 2018}) 12... Re8 {[%emt 0:01:23]} 13. a3 {[%emt 0:04:39]} Rc7 {[%emt 0:14:25]} 14. b4 {[%emt 0:04:03]} Rd7 {[%emt 0:06:19]} 15. Qa4 {[%emt 0:03:54]} Qa8 {[%emt 0:06:17]} 16. Rfd1 {[%emt 0:10:27]} Bf8 {[%emt 0:02:31]} 17. Nf1 {[%emt 0:05:05]} Rdd8 {[%emt 0:07:21]} 18. f3 {[%emt 0:07:26]} Qb8 {[%emt 0:02:19]} 19. Nb5 {[%emt 0:02:09]} (19. Bf2 $14) 19... d5 $1 $11 {[%emt 0:14:37]} 20. c5 {[%emt 0:10:14]} (20. exd5 $11 exd5 21. Qc2) 20... bxc5 {[%emt 0:08:19]} 21. bxc5 {[%emt 0:01:24][%cal Ob5d6]} dxe4 {[%emt 0:01:14]} 22. fxe4 {[%emt 0:00:53]} Qe5 {[%emt 0:08:13]} ({Black should try} 22... Rxd1 $17 23. Rxd1 Qe5) 23. Ng3 {[%emt 0:11:18]} Nd5 {[%emt 0:04:18]} 24. exd5 {[%emt 0:07:53]} (24. Bd4 $15 Nxd4 25. Qxd4) 24... Qxe3+ $19 {[%emt 0:00:16]} 25. Kh1 {[%emt 0:00:06] Hoping for Rc3.} Rxd5 {[%emt 0:03:33]} ({Not} 25... exd5 26. Nd6 Bxd6 27. cxd6 $11) 26. Nd6 {[%emt 0:01:41]} Bxd6 {[%emt 0:00:41]} ({Much less strong is} 26... Rxc5 27. Rxc5 Bxd6 28. Ba6 $1 Bxc5 29. Bxb7 $14) 27. cxd6 {[%emt 0:00:02] [#]} Rd8 {[%emt 0:02:39]} ({Better is} 27... Rxd6 $3 $19 {[%mdl 512]} 28. Rf1 Red8) 28. Rb1 {[%emt 0:01:07] [#]} (28. Rxd5 $17 Qxc1+ 29. Rd1) 28... Ba8 $2 {[%emt 0:01:21]} (28... Rxd1+ $1 $19 29. Rxd1 Ne5) 29. Bf3 $2 {[%emt 0:04:40]} (29. Rxd5 $11 exd5 30. Bb5) 29... Rxd1+ $17 {[%emt 0:00:21]} (29... R5xd6 $2 30. Rxd6 Rf8 31. Bxc6 $18) 30. Rxd1 {[%emt 0:00:54]} Rxd6 {[%emt 0:03:02]} 31. Rb1 {[%emt 0:03:50]} (31. h3 $142 Qe5 32. Nh5) 31... h6 $19 {[%emt 0:00:43]} 32. h3 {[%emt 0:02:25]} Qe5 {[%emt 0:00:13]} 33. Ne2 {[%emt 0:03:04] [#]} Rd8 $1 {[%emt 0:00:25]} 34. Bxc6 {[%emt 0:00:46]} (34. Qh4 Qd6) 34... Bxc6 {[%emt 0:00:36]} ({Avoid the trap} 34... Qxe2 $2 35. Bxa8 Rxa8 36. Kh2 $19) 35. Qxc6 {[%emt 0:00:14]} Qxe2 {[%emt 0:00:12][%mdl 4096] Endgame KQR-KQR} 36. Qc7 {[%emt 0:03:18]} Rd1+ {[%emt 0:00:39]} 37. Rxd1 {[%emt 0:00:09]} Qxd1+ {[%emt 0:00:04] KQ-KQ} 38. Kh2 {[%emt 0:00:16]} Qd4 {[%emt 0:00:22]} 39. Qe7 {[%emt 0:00:57]} Qf2 {[%emt 0:00:27]} 40. Qd6 {[%emt 0:00:49]} Kh7 {[%emt 0:00:56]} 41. a4 {[%emt 0:30:29]} Qe3 {[%emt 0:31:24]} 42. a5 $2 {[%emt 0:00:34]} (42. Qc7 {might work better.}) 42... f6 {[%emt 0:00:19]} 43. Qd8 {[%emt 0:01:45]} Qf4+ {[%emt 0:00:27]} 44. Kh1 {[%emt 0:00:09]} e5 {[%emt 0:00:00][%cal Be6e5,Be5e4][%mdl 32]} 45. Qd7 {[%emt 0:00:00]} Qf2 {[%emt 0:00:00] Strongly threatening ...e4.} 46. Kh2 $2 {[%emt 0:00:00]} (46. Qd5 Qe3 47. Kh2) 46... e4 {[%emt 0:00:00] Weighted Error Value: White=0.47/Black=0.16 (very precise)} 0-1

[Event "Summer Prague Open-A 2022"]
[Site "Prague"]
[Date "2022.08.05"]
[Round "1.10"]
[White "Weishaeutel, Moritz"]
[Black "Gorainow, Nikita"]
[Result "1-0"]
[ECO "A45"]
[WhiteElo "2400"]
[BlackElo "1987"]
[Annotator "TA"]
[PlyCount "55"]
[EventDate "2022.08.05"]
[EventType "swiss"]
[EventCountry "CZE"]
[SourceTitle "playchess.com"]
[Source "ChessBase"]
[SourceQuality "1"]
[TimeControl "40/5400+30:1800+30"]

{[%evp 9,55,-14,-14,-20,41,30,43,33,35,0,0,-48,-53,-57,73,92,54,31,28,27,16,-17,0,0,120,108,110,109,102,106,106,102,102,101,123,107,135,-115,-81,-80,222,226,512,504,693,691,29985,2859]} 1. d4 {[%emt 0:00:04]} Nf6 {[%emt 0:00:09]} 2. Bg5 {[%emt 0:00:08]} g6 {[%emt 0:01:41]} 3. Nc3 {[%emt 0:01:23]} d5 {[%emt 0:00:47]} 4. Qd2 {[%emt 0:00:11]} Bg7 {[%emt 0:04:04]} 5. Bh6 {[%emt 0:00:42]} Bxh6 {[%emt 0:12:24]} 6. Qxh6 {[%emt 0:00:08] D01: Veresov Opening.} c5 {[%emt 0:19:15]} (6... Bf5 $11) 7. dxc5 $14 {[%emt 0:03:51]} Nc6 {[%emt 0:04:58]} 8. O-O-O {[%emt 0:02:45][%cal Oe2e4] [#] White is slightly better.} Bf5 $146 {[%emt 0:12:44] Prevents e4.} ({Predecessor:} 8... Qa5 9. Nf3 Bf5 10. e3 Qxc5 11. Bb5 O-O-O 12. Bxc6 bxc6 13. h3 Ne4 14. Nxe4 Bxe4 {½-½ (34) Libersan,T (2214)-Kleinman,M (2297) Trois-Rivieres 2017}) 9. f3 {[%emt 0:07:09][%cal Oe2e4]} Qa5 {[%emt 0:14:42] Strongly threatening ...d4.} 10. e4 {[%emt 0:14:11]} (10. e3 $1 $11) 10... d4 $1 $15 {[%emt 0:04:42]} 11. Nb5 {[%emt 0:04:09]} a6 {[%emt 0:06:23]} (11... Be6 $15 {stays ahead.} 12. Nxd4 Qxa2 13. Nxc6 bxc6) 12. Nxd4 $16 {[%emt 0:08:20]} (12. exf5 axb5 13. fxg6 fxg6 $17) 12... Nxd4 {[%emt 0:00:33]} 13. Rxd4 {[%emt 0:00:09]} Qxa2 {[%emt 0:01:55]} 14. Ne2 $1 {[%emt 0:06:06][%cal Bg1e2,Be2c3,Bc3d5,Bd5e7][%mdl 32]} Be6 {[%emt 0:02:32]} 15. b4 {[%emt 0:03:51]} a5 {[%emt 0:08:34]} 16. Nc3 $1 {[%emt 0:04:25]} (16. Kd2 axb4 17. Nf4 b3 $17) 16... Qa3+ {[%emt 0:00:04]} (16... Qa1+ $1 $11 {remains equal.} 17. Kd2 Nd7) 17. Kd2 {[%emt 0:00:05]} axb4 {[%emt 0:01:45]} 18. Bb5+ $40 {[%emt 0:03:00][%mdl 128] White has strong attack.} (18. Nb5 $6 Qa5 19. Bd3 (19. Qg7 $2 Rg8 $19) 19... Bd7 $11) 18... Bd7 {[%emt 0:00:50]} 19. Bxd7+ {[%emt 0:03:23]} Nxd7 {[%emt 0:00:07]} 20. Nd5 {[%emt 0:00:05] Active counter play!} Qa5 {[%emt 0:01:44]} 21. Qg7 {[%emt 0:05:07]} (21. Rxb4 $2 e6 22. Qg7 Rf8 $19) 21... O-O-O {[%emt 0:00:25] White must now prevent ...e6.} 22. Nxe7+ {[%emt 0:12:55]} Kb8 {[%emt 0:00:04] And now ...Rhe8 would win.} 23. Ke3 $2 {[%emt 0:00:08]} ({Don't play} 23. Rd5 $6 Qc7 $11) (23. Nd5 $1 $16 {is necessary to keep the advantage. Threatens to win with c6.} Rhe8 24. Ke2 (24. Qxf7 $2 Ne5 $19) (24. Qxh7 $2 Qxc5 25. Rxb4 Ne5 $19) 24... Qxc5 25. Rhd1) 23... Qxc5 $17 {[%emt 0:00:38]} 24. Nd5 {[%emt 0:00:18] [#]} b5 $2 {[%emt 0:00:59][%mdl 8192] [#] Black cannot hold the game after this.} ({Don't do} 24... Qxc2 25. Rxb4 Qc5+ 26. Qd4 $16) (24... Rhe8 $1 $17 {aiming for ...Ne5.} 25. Rhd1 f5) 25. Rhd1 $1 $18 {[%emt 0:01:37]} ({Stronger than} 25. Qxf7 Nb6 26. Qf4+ Kb7 $11) 25... f5 $2 {[%emt 0:00:28]} (25... Qxc2 $2 26. Nf6 Qc3+ 27. Ke2 Nxf6 28. Qxf6 Rxd4 29. Qxh8+ Kc7 30. Qxd4 $18) (25... Rhe8 26. Nxb4 Kc8) 26. Nxb4 {[%emt 0:03:00] Intending Na6+ and mate.} Qb6 {[%emt 0:00:01] Prevents Na6+.} 27. Ke2 {[%emt 0:00:45]} Nf6 {[%emt 0:00:46]} 28. Rxd8+ {[%emt 0:00:16] Weighted Error Value: White=0.18 (very precise) /Black=0.84} 1-0

[Event "Summer Prague Open-A 2022"]
[Site "Prague"]
[Date "2022.08.05"]
[Round "1.11"]
[White "Werner, Hong Quan Dan"]
[Black "Zamengo, Fulvio"]
[Result "0-1"]
[ECO "B06"]
[WhiteElo "1965"]
[BlackElo "2396"]
[Annotator "TA"]
[PlyCount "60"]
[EventDate "2022.08.05"]
[EventType "swiss"]
[EventCountry "CZE"]
[SourceTitle "playchess.com"]
[Source "ChessBase"]
[SourceQuality "1"]
[TimeControl "40/5400+30:1800+30"]

{[%evp 9,60,20,16,10,23,11,-6,-15,-28,-85,-79,-79,-78,-80,-89,-109,-72,-150,-146,-135,-143,-254,-258,-262,0,-253,-262,-262,-258,-254,-240,-254,-244,-292,-252,-361,-360,-359,-344,-452,-447,-400,-377,-623,-533,-679,-639,-1804,-1971,-1828,-1807,-2452,-2403]} 1. e4 {[%emt 0:00:07]} g6 {[%emt 0:00:49]} 2. d4 {[%emt 0:01:21]} c6 {[%emt 0:00:07]} 3. Nc3 {[%emt 0:00:40]} d5 {[%emt 0:00:09]} 4. exd5 {[%emt 0:01:47]} cxd5 {[%emt 0:00:10]} 5. Bf4 {[%emt 0:01:10]} Bg7 {[%emt 0:01:56]} 6. Bb5+ {[%emt 0:07:20] B15: Caro-Kann: 3 Nc3: 3...g6 and 3...dxe4 4 Nxe4 Nf6 5 Nxf6+ exf6.} Nc6 {[%emt 0:04:51]} 7. Nf3 {[%emt 0:03:45]} Bg4 {[%emt 0:02:55] [#]} 8. Bxc6+ $146 {[%emt 0:06:31] The position is equal.} ({Predecessor:} 8. h3 Bxf3 9. Qxf3 e6 10. Be5 Bxe5 11. dxe5 Nge7 12. O-O a6 13. Bxc6+ Nxc6 14. Rfe1 O-O {½-½ (72) Shtyka,S (2175)-Juhasz,A (2341) Chess.com INT 2021}) 8... bxc6 {[%emt 0:00:08]} 9. Qd2 {[%emt 0:16:33]} (9. O-O $11) 9... Bxf3 $17 {[%emt 0:12:07]} 10. gxf3 {[%emt 0:00:06]} e6 {[%emt 0:00:09]} ({Reject} 10... Nf6 $6 11. O-O-O $11) 11. O-O-O {[%emt 0:05:20]} Ne7 {[%emt 0:00:30]} 12. Bg5 {[%emt 0:02:19]} Qc7 {[%emt 0:02:20]} 13. Bxe7 {[%emt 0:01:02]} (13. Na4 $142) 13... Qxe7 {[%emt 0:00:08]} 14. Na4 {[%emt 0:01:40]} Rb8 {[%emt 0:01:48]} 15. Nc5 {[%emt 0:05:54] [#]} (15. c3 $17) 15... Qxc5 $3 $19 {[%emt 0:01:06][%mdl 512]} 16. dxc5 {[%emt 0:00:49]} Bxb2+ {[%emt 0:00:08]} 17. Kb1 {[%emt 0:00:04]} Bc3+ $1 {[%emt 0:00:08]} 18. Kc1 {[%emt 0:00:05]} Bxd2+ {[%emt 0:00:11]} 19. Kxd2 {[%emt 0:00:07][%mdl 4096] Endgame KRR-KRR} Kd7 {[%emt 0:01:24]} 20. Rb1 {[%emt 0:00:33]} a5 {[%emt 0:11:30]} 21. f4 {[%emt 0:01:21]} Kc7 {[%emt 0:02:04]} 22. Kc3 {[%emt 0:07:07]} (22. Rb3 $142) 22... Rxb1 {[%emt 0:03:01]} 23. Rxb1 {[%emt 0:00:06] [#]} Rb8 $1 {[%emt 0:00:06]} 24. Rxb8 {[%emt 0:10:07]} Kxb8 {[%emt 0:00:08] KP-KP} 25. Kd4 {[%emt 0:01:00] [#] Black must now prevent Ke5.} f6 {[%emt 0:00:07]} 26. h4 $2 {[%emt 0:00:28]} (26. Ke3 Kc8 27. Kd4) 26... Kb7 {[%emt 0:02:07] Black is clearly winning.} 27. Ke3 {[%emt 0:03:03]} a4 {[%emt 0:01:09] And now ...Ka6 would win.} 28. Kf3 {[%emt 0:03:37]} Ka6 {[%emt 0:00:28]} 29. Ke3 {[%emt 0:03:17]} Kb5 {[%emt 0:00:38] Hoping for ...Kb4.} 30. Kd4 {[%emt 0:00:21]} Kb4 {Weighted Error Value: White=0.85/Black=0.06 (flawless)} 0-1